bitfinex-derivatives/quotes_ETHF0:USTF0_20220103
["timestamp","ask_amount","ask_price","bid_price","bid_amount"]
[1641223875076,1.23032779,3806.1,3805.7,0.88723563]
[1641223875278,1.23032779,3806.1,3805.8,0.88723563]
[1641223875477,1.23032779,3806.1,3805.8,1.54963563]
[1641223875879,1.23032779,3806.1,3805.9,0.88723563]
[1641223877078,1.23032779,3806.1,3805.9,1.33910771]
[1641223877378,1.23032779,3806.1,3806.0,0.229991]
[1641223877780,1.23032779,3806.1,3805.9,1.33910771]
[1641223877982,1.23032779,3806.1,3805.8,0.88723563]
[1641223878583,1.23032779,3806.1,3805.9,0.229991]
[1641223878985,1.23032779,3806.1,3805.8,0.88723563]
[1641223881487,1.23032779,3806.1,3805.9,0.229991]
[1641223881988,0.55620473,3806.0,3805.9,0.229991]
[1641223882685,0.55620473,3806.0,3805.7,0.88723563]
[1641223883389,1.23032779,3806.1,3805.7,0.88723563]
[1641223883592,1.23032779,3806.1,3805.8,0.88723563]
[1641223884389,1.23032779,3806.1,3805.9,0.229991]
[1641223885392,1.23032779,3806.1,3805.9,1.11722663]
[1641223887296,1.23032779,3806.1,3806.0,1.33842734]
[1641223888895,1.23032779,3806.1,3806.0,0.68118271]
[1641223889396,1.23032779,3806.1,3806.0,0.45119171]
[1641223889997,1.23032779,3806.1,3806.0,1.33450467]
[1641223891002,1.23032779,3806.1,3805.9,0.88331296]
[1641223891600,1.23032779,3806.1,3806.0,0.229991]
[1641223891800,1.23032779,3806.1,3806.0,1.11330396]
[1641223892000,1.23032779,3806.1,3806.0,0.88331296]
[1641223892402,1.23032779,3806.1,3806.0,1.11330396]
[1641223892604,1.23032779,3806.1,3806.0,1.33450467]
[1641223893202,1.23032779,3806.1,3806.0,0.88331296]
[1641223893407,4.04238231,3806.1,3806.0,0.88331296]
[1641223893606,15.33238231,3806.1,3805.4,1.89958238]
[1641223893809,1.499,3805.7,3805.4,1.89958238]
[1641223894007,11.29,3806.0,3805.4,1.44839067]
[1641223894207,1.499,3805.8,3805.4,1.44839067]
[1641223894406,1.499,3805.6,3805.1,1.44839067]
[1641223895008,11.29,3806.0,3805.1,1.44839067]
[1641223895207,1.499,3805.7,3805.1,1.44839067]
[1641223895609,3.50379,3805.7,3805.1,1.44839067]
[1641223895807,3.0228518,3805.7,3805.1,1.44839067]
[1641223896210,0.55619272,3805.5,3804.7,1.89960476]
[1641223896508,2.05519272,3805.5,3804.7,1.89960476]
[1641223896709,1.499,3805.3,3804.7,1.89960476]
[1641223896909,1.499,3804.8,3804.7,1.89960476]
[1641223897208,2.81265478,3804.8,3804.7,1.89960476]
[1641223897608,6.82223478,3804.8,3804.7,1.89960476]
[1641223898008,7.72869674,3804.8,3804.7,1.89960476]
[1641223898609,8.28488946,3804.8,3803.9,2.64119517]
[1641223898827,1.499,3804.5,3803.9,2.64119517]
[1641223899009,2.2528,3804.5,3803.9,2.64119517]
[1641223899410,0.7538,3804.5,3803.9,1.89960476]
[1641223899611,0.7538,3804.5,3803.9,0.45121409]
[1641223900613,6.22969674,3804.8,3804.0,0.45121409]
[1641223901613,2.00479,3804.4,3804.0,0.45121409]
[1641223902012,2.00479,3804.4,3804.1,0.45121409]
[1641223903515,2.00479,3804.4,3804.2,0.45121409]
[1641223904315,2.00479,3804.4,3804.3,0.45121409]
[1641223906020,5.40984988,3804.8,3804.3,0.68120509]
[1641223906417,5.40984988,3804.8,3804.4,1.5]
[1641223906618,1.48283009,3805.1,3804.3,0.45121409]
[1641223907017,1.18450661,3804.9,3804.3,0.45121409]
[1641223907618,1.18450661,3804.9,3804.6,2.00479]
[1641223908017,1.31340806,3805.1,3804.3,0.45121409]
[1641223908317,0.7834,3804.9,3804.5,1.44839067]
[1641223909618,0.7834,3804.9,3804.0,0.128157]
[1641223909619,0.55628257,3804.8,3804.3,1.44839067]
[1641223909819,1.39279924,3804.8,3804.3,1.44839067]
[1641223910422,0.83651667,3804.8,3804.3,1.44839067]
[1641223910621,0.83651667,3804.8,3804.1,0.45121409]
[1641223911322,0.83651667,3804.8,3804.0,2.132947]
[1641223912122,0.83651667,3804.8,3804.1,0.43560811]
[1641223912825,1.31353917,3804.7,3804.1,0.43560811]
[1641223913725,1.31353917,3804.7,3804.1,0.56376511]
[1641223914025,1.31353917,3804.7,3804.1,0.43560811]
[1641223914224,1.31353917,3804.7,3804.1,1.32127436]
[1641223919235,1.96253917,3804.7,3804.1,1.32127436]
[1641223919835,1.96253917,3804.7,3804.1,0.88566625]
[1641223920134,2.00479,3804.5,3804.0,2.89045625]
[1641223921834,2.00479,3804.5,3804.1,1.33432174]
[1641223922735,2.00479,3804.5,3804.0,2.89045625]
[1641223923535,2.00479,3804.5,3804.0,2.00479]
[1641223924436,2.00479,3804.5,3804.0,2.89045625]
[1641223924638,2.00479,3804.5,3804.0,3.01861325]
[1641223924836,2.00479,3804.5,3804.0,2.89045625]
[1641223925940,2.00479,3804.5,3804.0,2.00479]
[1641223926336,2.00479,3804.5,3803.9,0.88566625]
[1641223926940,2.00479,3804.5,3803.5,0.88566625]
[1641223928042,2.00479,3804.5,3803.6,0.88566625]
[1641223928241,2.00479,3803.8,3803.6,0.88566625]
[1641223928641,2.93484917,3803.8,3803.6,0.88566625]
[1641223929043,3.69094917,3803.8,3803.6,0.88566625]
[1641223929645,3.69094917,3803.8,3803.4,0.88566625]
[1641223930648,3.69094917,3803.8,3803.3,0.88566625]
[1641223932350,3.69094917,3803.8,3803.3,1.33436931]
[1641223936357,1.68615917,3803.8,3803.4,0.88566625]
[1641223936555,0.93005917,3803.8,3803.4,0.88566625]
[1641223936957,1.31372209,3804.2,3803.4,2.38566625]
[1641223937157,1.1665671,3804.4,3803.6,1.5]
[1641223937357,1.1665671,3804.4,3803.6,2.1606]
[1641223938156,1.1665671,3804.4,3803.6,0.6606]
[1641223938356,1.1665671,3804.4,3803.5,0.88566625]
[1641223938961,1.1665671,3804.4,3803.8,0.88566625]
[1641223941060,1.1665671,3804.4,3803.7,0.88566625]
[1641223943461,1.1665671,3804.4,3803.6,0.88566625]
[1641223944262,2.00479,3803.9,3803.5,1.33436931]
[1641223945364,2.00479,3803.9,3803.7,0.88566625]
[1641223945563,2.00479,3803.9,3803.8,0.229991]
[1641223946463,1.1665671,3804.4,3803.8,0.229991]
[1641223947163,1.1665671,3804.4,3803.9,0.44997612]
[1641223948865,1.1665671,3804.4,3803.8,1.44839067]
[1641223950365,1.1665671,3804.4,3803.9,1.44839067]
[1641223952267,1.1665671,3804.4,3803.8,1.44839067]
[1641223955070,1.1665671,3804.4,3803.9,1.44839067]
[1641223956970,1.1665671,3804.4,3803.8,1.44839067]
[1641223958070,1.1665671,3804.4,3803.9,1.44839067]
[1641223958571,1.1665671,3804.4,3803.9,2.11569067]
[1641223958771,1.1665671,3804.4,3803.9,2.24384767]
[1641223958977,1.18099368,3804.9,3804.2,1.5]
[1641223959374,1.18099368,3804.9,3804.0,1.5]
[1641223959979,1.18099368,3804.9,3804.8,0.88755095]
[1641223960179,0.86895752,3804.9,3804.8,1.65855095]
[1641223960577,2.87374752,3804.9,3804.8,1.65855095]
[1641223961477,2.87374752,3804.9,3804.8,0.771]
[1641223961678,2.87374752,3804.9,3804.8,0.44997612]
[1641223962578,3.43007873,3804.9,3804.7,0.88772149]
[1641223963478,2.87374752,3804.9,3804.7,0.88772149]
[1641223964379,2.87374752,3804.9,3804.8,0.229991]
[1641223964580,2.87374752,3804.9,3804.7,0.88772149]
[1641223964779,2.87374752,3804.9,3804.7,1.01587849]
[1641223965180,0.86895752,3804.9,3804.8,0.44997612]
[1641223965382,0.86895752,3804.9,3804.8,1.33786712]
[1641223965786,1.31339426,3805.1,3804.8,1.33786712]
[1641223966186,1.18099368,3805.3,3804.8,1.33786712]
[1641223966387,1.48283009,3805.6,3805.1,1.5]
[1641223966687,1.48283009,3805.5,3805.0,3.50479]
[1641223966887,1.18455829,3805.2,3805.0,3.50479]
[1641223967087,1.18455829,3805.2,3805.1,0.229991]
[1641223967685,1.48283009,3805.5,3805.1,0.229991]
[1641223968387,29.59569,3805.9,3805.1,0.67996712]
[1641223968588,2.00479,3805.9,3805.1,0.67996712]
[1641223969587,0.5562082,3805.8,3805.7,0.88692019]
[1641223969786,0.5562082,3805.8,3805.7,1.24506819]
[1641223969987,0.5562082,3805.8,3805.7,1.01507719]
[1641223970787,0.5562082,3805.8,3805.7,1.24506819]
[1641223971086,0.5562082,3805.8,3805.7,0.88692019]
[1641223971688,0.5562082,3805.8,3805.7,0.229991]
[1641223972691,0.5562082,3805.8,3805.7,1.57665452]
[1641223973689,0.5562082,3805.8,3805.7,0.68973433]
[1641223974690,2.00479,3805.9,3805.7,0.68973433]
[1641223975492,2.00479,3805.9,3805.8,1.34631447]
[1641223976791,2.56097791,3805.9,3805.8,0.45974333]
[1641223978494,2.56097791,3805.9,3805.8,1.3462246]
[1641223978992,2.56097791,3805.9,3805.8,0.45974333]
[1641223979193,2.56097791,3805.9,3805.6,0.128157]
[1641223979392,2.56097791,3805.9,3805.7,0.229991]
[1641223980798,2.00479,3805.9,3805.8,0.45974333]
[1641223982997,3.31797556,3805.9,3805.8,0.45974333]
[1641223983197,2.00479,3805.9,3805.4,1.44839067]
[1641223983397,4.07467556,3805.9,3805.4,1.44839067]
[1641223984599,4.07467556,3805.9,3805.5,0.88734902]
[1641223984799,2.00479,3805.6,3805.5,0.88734902]
[1641223986200,2.00479,3805.6,3805.3,0.88734902]
[1641223987101,1.18507975,3805.5,3805.3,0.88734902]
[1641223987301,1.98502809,3805.5,3805.3,0.88734902]
[1641223987502,1.98502809,3805.5,3804.8,1.44839067]
[1641223988105,1.31337011,3805.2,3804.8,1.44839067]
[1641223988302,1.31337011,3805.2,3804.7,1.44839067]
[1641223988903,4.00958,3804.8,3804.7,1.44839067]
[1641223989104,4.80388,3804.8,3804.7,1.44839067]
[1641223989304,4.80388,3804.8,3804.3,1.44839067]
[1641223989504,6.80631075,3804.8,3804.3,1.44839067]
[1641223990904,2.00479,3804.4,3804.2,1.44839067]
[1641223991105,2.00479,3804.4,3804.3,0.229991]
[1641223991306,2.00479,3804.4,3804.2,1.44839067]
[1641223993205,3.50379,3804.4,3804.2,1.44839067]
[1641223993406,3.50379,3804.4,3804.2,0.44792224]
[1641223994007,2.00479,3804.4,3804.2,0.44792224]
[1641223994207,3.50379,3804.4,3804.2,0.44792224]
[1641223994709,3.50379,3804.4,3803.3,3.64930969]
[1641223995009,3.50379,3804.4,3803.3,0.74186769]
[1641223995612,1.499,3804.1,3803.3,0.74186769]
[1641223995810,1.31396376,3803.6,3803.3,0.74186769]
[1641223996510,2.81318133,3803.4,3802.8,2.907442]
[1641223996710,2.4823961,3803.4,3802.8,2.907442]
[1641223996911,4.00958,3802.9,3802.8,2.907442]
[1641223997110,4.54478,3802.9,3802.8,2.907442]
[1641223997612,4.54478,3802.9,3802.1,3.68476159]
[1641223997810,1.499,3802.8,3802.4,2.9654031]
[1641223998713,0.68270828,3802.8,3802.1,3.68476159]
[1641223998911,2.00479,3802.3,3802.1,3.68476159]
[1641223999113,2.00479,3802.3,3801.8,2.90072871]
[1641223999311,2.00479,3802.3,3801.8,0.128157]
[1641224007520,0.68270828,3802.8,3801.8,0.128157]
[1641224007721,2.00479,3802.9,3801.8,0.128157]
[1641224008724,2.00479,3802.9,3801.9,1.5]
[1641224008922,2.00479,3802.9,3802.1,2.00479]
[1641224011727,3.31895924,3802.9,3802.1,2.00479]
[1641224017335,1.18507975,3802.7,3802.4,1.47248339]
[1641224018633,1.18507975,3802.7,3802.6,1.47248339]
[1641224018836,1.65573351,3802.8,3802.6,1.47248339]
[1641224020338,0.55658777,3802.7,3802.6,1.47248339]
[1641224022638,0.55658777,3802.7,3802.6,1.70247439]
[1641224022838,1.09914574,3802.8,3802.6,1.47248339]
[1641224023540,1.09914574,3802.8,3802.7,1.47248339]
[1641224025042,1.65569634,3802.8,3802.7,1.47248339]
[1641224026847,1.65569634,3802.8,3802.7,1.70247439]
[1641224027048,1.65569634,3802.8,3802.7,1.47248339]
[1641224027346,1.09914574,3802.8,3802.4,1.47248339]
[1641224029852,1.09914574,3802.8,3802.3,1.85499616]
[1641224031450,2.00479,3802.4,3802.3,1.85499616]
[1641224032051,2.00479,3802.4,3802.3,0.38251277]
[1641224032660,4.81822871,3802.4,3801.5,2.94523812]
[1641224032852,1.499,3802.3,3801.4,2.94523812]
[1641224033052,2.2673,3802.3,3801.4,2.94523812]
[1641224033452,2.00479,3801.7,3801.4,2.94523812]
[1641224034056,2.00479,3801.7,3801.4,3.07339512]
[1641224034652,2.00479,3801.7,3801.3,0.74211702]
[1641224034653,3.02107566,3801.7,3801.3,0.74211702]
[1641224036157,3.02107566,3801.7,3801.2,0.128157]
[1641224036358,3.02107566,3801.7,3800.9,4.29690426]
[1641224037057,3.02107566,3801.7,3800.9,2.00479]
[1641224042064,2.81364089,3801.5,3800.7,2.29211426]
[1641224042263,3.43274089,3801.5,3800.7,2.29211426]
[1641224042464,1.31483622,3800.9,3800.7,2.29211426]
[1641224042662,1.31483622,3800.9,3800.7,0.74211702]
[1641224043064,2.05787502,3800.9,3800.8,0.229991]
[1641224043563,4.06266502,3800.9,3800.5,0.74211702]
[1641224043763,4.06266502,3800.9,3800.5,0.87027402]
[1641224044165,4.06266502,3800.9,3800.5,0.128157]
[1641224045464,4.06266502,3800.9,3800.0,2.94523812]
[1641224045666,4.06266502,3800.9,3800.1,0.128157]
[1641224047667,4.06266502,3800.9,3800.0,2.94523812]
[1641224047865,4.62136502,3800.9,3800.0,2.94523812]
[1641224048065,3.3065288,3800.9,3800.8,1.48321043]
[1641224050069,3.3065288,3800.9,3799.9,4.95002812]
[1641224050070,3.3065288,3800.9,3800.5,0.88540196]
[1641224053374,3.3065288,3800.9,3800.4,0.88540196]
[1641224053574,3.3065288,3800.9,3800.4,1.01355896]
[1641224053976,2.7478288,3800.9,3800.4,1.01355896]
[1641224054175,2.7478288,3800.9,3800.5,1.25746224]
[1641224054777,2.7478288,3800.9,3800.5,0.88540196]
[1641224054978,2.7478288,3800.9,3800.4,1.01355896]
[1641224056682,2.7478288,3800.9,3800.2,0.78943183]
[1641224056683,24.34872237,3800.7,3800.5,1.25746307]
[1641224058080,24.34872237,3800.7,3800.5,0.88540196]
[1641224058482,24.34872237,3800.7,3799.8,0.88540196]
[1641224059483,2.00479,3799.9,3799.8,0.88540196]
[1641224059686,2.52849,3799.9,3799.8,1.11539296]
[1641224059884,3.31965561,3800.9,3799.8,1.11539296]
[1641224060085,3.31965561,3800.9,3800.0,0.78946702]
[1641224061087,2.00479,3800.9,3800.2,1.5]
[1641224061386,2.00479,3800.9,3800.0,1.57016702]
[1641224061587,2.00479,3800.9,3800.0,5.07495702]
[1641224061788,2.00479,3800.9,3800.2,0.88540196]
[1641224062988,1.31492612,3800.7,3800.2,0.88540196]
[1641224063199,1.98692612,3800.7,3800.2,0.88540196]
[1641224063591,2.00479,3800.3,3800.2,0.88540196]
[1641224063790,29.83290003,3800.3,3800.2,0.88540196]
[1641224063992,29.83290003,3800.3,3799.9,0.88540196]
[1641224064693,31.10394642,3800.3,3799.9,0.88540196]
[1641224065395,31.10394642,3800.3,3799.7,0.128157]
[1641224065793,3.27583639,3800.3,3799.7,1.628157]
[1641224065991,2.00479,3800.3,3799.7,0.128157]
[1641224066191,2.00479,3800.3,3799.8,1.25485231]
[1641224066391,2.00479,3800.3,3799.8,1.82085231]
[1641224066991,2.00479,3800.3,3799.8,3.32085231]
[1641224067196,2.00479,3800.3,3800.0,2.07931855]
[1641224067394,2.00479,3800.9,3800.1,0.229991]
[1641224067594,2.00479,3800.9,3800.5,1.5]
[1641224067896,2.00479,3800.9,3800.5,0.128157]
[1641224068195,2.00479,3801.2,3800.5,2.41751041]
[1641224069494,2.00479,3801.2,3800.7,2.00479]
[1641224072200,0.70889346,3801.4,3801.0,1.5]
[1641224072397,2.00479,3801.9,3800.9,0.78927407]
[1641224073199,3.0017904,3801.9,3800.9,0.78927407]
[1641224073600,0.9970004,3801.9,3801.5,2.00479]
[1641224082714,1.3143938,3802.2,3801.6,1.13613652]
[1641224083614,2.4693317,3802.2,3801.6,1.13613652]
[1641224084414,2.4693317,3802.2,3802.0,1.27713934]
[1641224085515,2.4693317,3802.2,3802.0,1.53465125]
[1641224086316,2.4693317,3802.2,3802.1,0.88540196]
[1641224086516,2.4693317,3802.2,3802.1,1.27667412]
[1641224087116,2.4693317,3802.2,3802.1,1.50666512]
[1641224087316,2.4693317,3802.2,3802.1,1.27667412]
[1641224087916,2.4693317,3802.2,3802.1,1.50666512]
[1641224088117,2.4693317,3802.2,3802.1,1.27667412]
[1641224089116,1.1549379,3802.2,3802.1,1.50666512]
[1641224089316,1.1549379,3802.2,3802.1,1.27667412]
[1641224090120,1.1549379,3802.2,3802.1,1.50666512]
[1641224090319,1.1549379,3802.2,3802.1,0.62126316]
[1641224090717,1.18507975,3802.8,3802.4,5.14185231]
[1641224091016,1.47260308,3803.1,3802.8,5.15100656]
[1641224091219,1.47260308,3803.1,3802.9,0.229991]
[1641224091418,1.47260308,3803.1,3802.9,0.856291]
[1641224092520,1.78023407,3803.4,3803.0,0.39127216]
[1641224092719,2.00479,3803.7,3803.0,0.39127216]
[1641224093721,2.00479,3803.7,3803.2,0.88839259]
[1641224093921,0.55642698,3803.6,3803.2,0.88839259]
[1641224094122,0.55642698,3803.6,3803.3,0.128157]
[1641224094724,0.55642698,3803.6,3803.2,0.88839259]
[1641224094922,1.11642698,3803.6,3803.2,0.88839259]
[1641224095224,1.11642698,3803.6,3803.3,0.88839259]
[1641224095821,0.55642698,3803.5,3803.0,0.88839259]
[1641224096621,1.87038556,3803.5,3803.0,0.88839259]
[1641224096823,1.87038556,3803.5,3802.9,1.28965006]
[1641224097022,0.55642698,3803.5,3802.9,1.28965006]
[1641224097223,1.31410534,3803.1,3802.9,1.28965006]
[1641224097422,2.05542698,3803.5,3802.9,1.28965006]
[1641224097623,2.05542698,3803.5,3802.4,3.48800043]
[1641224097624,1.499,3803.0,3802.4,1.48321043]
[1641224097823,1.499,3802.5,3802.1,1.48321043]
[1641224098026,1.3143627,3802.3,3802.1,1.48321043]
[1641224098225,3.3191527,3802.3,3802.1,1.48321043]
[1641224098424,2.00479,3802.3,3802.1,1.48321043]
[1641224099024,2.00479,3802.3,3801.9,0.128157]
[1641224099025,2.00479,3802.3,3802.2,0.229991]
[1641224099225,2.00479,3802.3,3801.9,0.128157]
[1641224099626,2.00479,3802.3,3801.6,1.48321043]
[1641224100430,2.00479,3802.3,3801.7,1.48321043]
[1641224101634,2.00479,3802.3,3801.7,1.61136743]
[1641224101830,1.18046869,3802.7,3802.1,1.5]
[1641224102030,1.18046869,3802.7,3801.7,1.61136743]
[1641224102233,1.18046869,3802.8,3802.6,2.00479]
[1641224102430,1.18046869,3802.8,3802.7,0.229991]
[1641224103239,1.18046869,3803.2,3802.7,0.229991]
[1641224103835,1.18046869,3803.2,3802.6,2.00479]
[1641224104035,1.80756869,3803.2,3802.6,2.00479]
[1641224104236,2.00479,3802.7,3802.2,1.48321043]
[1641224105134,2.00479,3802.7,3802.2,1.61136743]
[1641224105335,2.00479,3802.7,3802.2,0.128157]
[1641224107736,2.00479,3802.7,3801.9,1.48321043]
[1641224108338,2.00479,3802.7,3802.0,2.00479]
[1641224108536,2.00479,3802.7,3802.0,2.132947]
[1641224114444,3.18525869,3803.1,3802.0,2.132947]
[1641224114646,3.18525869,3803.1,3802.0,3.61615743]
[1641224114846,2.00479,3803.1,3802.0,3.61615743]
[1641224115851,2.00479,3803.1,3802.1,1.48321043]
[1641224116651,2.49464484,3802.9,3802.6,1.48321043]
[1641224117251,1.18046869,3802.9,3802.6,1.48321043]
[1641224117450,1.18046869,3802.9,3802.7,0.229991]
[1641224117849,1.18046869,3802.9,3802.6,1.48321043]
[1641224118050,0.55659358,3802.8,3802.7,0.89054972]
[1641224118854,0.55659358,3802.9,3802.5,0.38905574]
[1641224119755,1.18385432,3802.7,3802.5,0.38905574]
[1641224120353,1.89565432,3802.7,3802.5,0.38905574]
[1641224120553,1.89565432,3802.7,3802.6,0.229991]
[1641224120754,1.89565432,3802.7,3802.5,0.38905574]
[1641224121260,1.18385432,3802.6,3802.5,0.38905574]
[1641224121556,0.55659358,3802.6,3802.3,1.87226617]
[1641224121756,0.55659358,3802.6,3802.4,0.229991]
[1641224121957,0.55659358,3802.6,3802.3,1.87226617]
[1641224122556,0.55659358,3802.6,3802.4,0.229991]
[1641224122758,0.55659358,3802.9,3802.5,0.38905574]
[1641224124361,0.55659358,3803.0,3802.5,0.38905574]
[1641224124662,1.31416924,3802.9,3802.5,0.38905574]
[1641224125264,1.31416924,3802.9,3802.8,0.89051885]
[1641224126166,1.31416924,3802.9,3802.4,0.38905574]
[1641224126366,2.00479,3803.1,3802.4,0.38905574]
[1641224127664,2.00479,3803.1,3803.0,0.89048727]
[1641224128263,3.31899551,3803.1,3803.0,0.89048727]
[1641224128565,2.00479,3803.1,3803.0,0.89048727]
[1641224128767,3.78502407,3803.1,3802.8,0.89048727]
[1641224128966,3.78502407,3803.1,3802.9,0.229991]
[1641224129164,3.78502407,3803.1,3802.8,0.89048727]
[1641224129165,1.30948815,3803.0,3802.8,0.89048727]
[1641224129565,1.30948815,3803.0,3802.8,0.09178727]
[1641224129766,1.30948815,3803.0,3802.3,1.48321043]
[1641224130368,1.30948815,3803.0,3802.1,0.38225856]
[1641224130567,3.27923407,3802.9,3802.1,0.38225856]
[1641224130767,1.78023407,3802.9,3802.1,0.38225856]
[1641224131471,3.27923407,3802.9,3802.1,0.38225856]
[1641224131871,1.499,3802.7,3802.1,0.38225856]
[1641224132069,1.31426942,3802.6,3802.1,0.38225856]
[1641224132470,3.09450349,3802.6,3802.1,0.38225856]
[1641224133774,1.48150182,3802.5,3802.1,0.38225856]
[1641224133973,0.67355152,3802.4,3802.1,0.38225856]
[1641224134671,0.67355152,3802.4,3802.2,0.229991]
[1641224136272,0.67355152,3802.4,3802.3,0.38225856]
[1641224137672,0.67355152,3802.4,3802.1,0.38225856]
[1641224137873,0.67355152,3802.4,3802.2,0.229991]
[1641224138078,0.67355152,3802.4,3802.1,0.38225856]
[1641224138676,0.67355152,3802.4,3802.2,0.229991]
[1641224139276,0.67355152,3802.4,3802.2,0.810991]
[1641224139476,1.18281831,3802.6,3802.2,0.810991]
[1641224140277,0.77665564,3802.5,3802.2,0.810991]
[1641224140479,1.39395564,3802.5,3802.2,0.229991]
[1641224140878,1.39395564,3802.5,3802.3,1.8654232]
[1641224141980,0.55659146,3802.4,3802.3,0.38221277]
[1641224142379,0.55659146,3802.4,3802.3,0.61220377]
[1641224143282,1.73940977,3802.4,3802.3,0.229991]
[1641224143880,1.73940977,3802.4,3802.3,0.61220377]
[1641224143881,0.55659146,3802.4,3802.3,0.61220377]
[1641224144081,0.55659146,3802.4,3802.3,0.38221277]
[1641224144982,1.73940977,3802.4,3802.3,0.61220377]
[1641224145184,1.73940977,3802.4,3802.3,0.38221277]
[1641224145786,0.55659146,3802.4,3802.2,1.48321043]
[1641224145985,0.55659146,3802.4,3802.3,0.229991]
[1641224147387,0.55659146,3802.4,3802.2,1.48321043]
[1641224147587,0.55659146,3802.4,3802.3,0.61220377]
[1641224148788,0.55659146,3802.4,3802.3,0.38221277]
[1641224149287,0.55659146,3802.4,3802.3,0.61220377]
[1641224150189,0.55659146,3802.4,3802.3,0.38221277]
[1641224150589,1.73940977,3802.4,3802.3,0.61220377]
[1641224150790,1.73940977,3802.4,3802.3,0.38221277]
[1641224151089,1.73940977,3802.4,3802.1,1.8654232]
[1641224151490,1.73940977,3802.4,3802.2,0.229991]
[1641224151688,1.73940977,3802.4,3802.1,1.8654232]
[1641224152290,0.77665564,3802.5,3802.4,3.52038232]
[1641224152491,0.77665564,3802.5,3802.2,0.229991]
[1641224152492,1.18715899,3802.3,3802.2,0.38221277]
[1641224153691,2.68615899,3802.3,3802.2,0.38221277]
[1641224153892,2.68615899,3802.3,3802.0,1.48321043]
[1641224154093,2.81347154,3802.1,3802.0,1.48321043]
[1641224154294,3.50027154,3802.1,3802.0,0.09420408]
[1641224154495,5.50506154,3802.1,3802.0,0.09420408]
[1641224154697,5.50506154,3802.1,3801.3,0.74213028]
[1641224155996,5.50506154,3802.1,3801.8,0.89072137]
[1641224156195,5.97082407,3802.1,3801.8,0.89072137]
[1641224157496,1.499,3801.9,3801.8,0.89072137]
[1641224157696,0.67375988,3801.9,3801.8,0.89072137]
[1641224158097,1.98833683,3801.9,3801.8,0.89072137]
[1641224158498,3.48733683,3801.9,3801.8,0.89072137]
[1641224159600,3.48733683,3801.9,3801.7,0.89072137]
[1641224160601,2.00479,3801.8,3801.7,0.89072137]
[1641224161806,2.00479,3801.8,3801.6,0.89072137]
[1641224162408,3.78502407,3801.8,3801.5,0.89072137]
[1641224163606,5.28402407,3801.8,3801.5,0.89072137]
[1641224164506,5.28402407,3801.8,3801.4,0.89072137]
[1641224164706,1.78023407,3801.7,3801.4,0.89072137]
[1641224165507,3.50379,3801.8,3800.8,45.3906]
[1641224166509,2.00479,3801.0,3800.8,45.3906]
[1641224166710,0.9458863,3800.9,3800.8,0.229991]
[1641224166913,0.9458863,3800.9,3800.5,0.89072137]
[1641224168720,0.9458863,3800.9,3800.1,2.00479]
[1641224168721,0.9458863,3800.9,3800.4,0.89072137]
[1641224169821,0.9458863,3800.9,3800.2,0.89072137]
[1641224170023,0.9458863,3800.9,3800.2,1.01887837]
[1641224170621,0.94572781,3801.5,3800.8,2.00479]
[1641224170821,0.94572781,3801.5,3800.8,2.70289]
[1641224171221,1.17900016,3801.7,3800.8,2.70289]
[1641224172023,2.00479,3801.8,3800.8,2.70289]
[1641224173125,2.00479,3801.8,3800.8,3.59361137]
[1641224173526,2.7352121,3801.8,3800.8,3.59361137]
[1641224174428,2.7352121,3801.8,3801.0,0.89072137]
[1641224174626,2.7352121,3801.8,3801.2,2.00479]
[1641224174827,2.7352121,3801.8,3801.3,0.128157]
[1641224175027,1.31433679,3802.4,3801.3,0.128157]
[1641224175230,1.17900016,3802.5,3801.7,4.3464814]
[1641224175430,1.17900016,3802.5,3801.7,4.9060814]
[1641224175627,1.17900016,3802.5,3801.7,3.4060814]
[1641224176632,1.17900016,3802.5,3802.0,2.00479]
[1641224177030,1.26285976,3802.4,3802.0,2.00479]
[1641224180033,1.26285976,3802.4,3801.6,0.89072137]
[1641224180236,1.26285976,3802.4,3801.7,0.89072137]
[1641224180632,2.00479,3802.2,3801.7,0.89072137]
[1641224181338,2.00479,3802.2,3801.5,0.89072137]
[1641224181535,2.00479,3802.2,3801.6,0.128157]
[1641224181736,4.81820453,3802.2,3801.6,0.128157]
[1641224181938,2.8137204,3801.7,3801.5,0.89072137]
[1641224182136,1.8369204,3801.7,3801.5,0.89072137]
[1641224182738,2.00479,3801.6,3801.5,0.89072137]
[1641224183538,2.00479,3801.6,3800.8,0.89072137]
[1641224183738,2.00479,3801.6,3800.8,1.01887837]
[1641224183938,2.00479,3801.6,3800.8,0.89072137]
[1641224184138,0.81827513,3801.5,3800.8,0.89072137]
[1641224185743,0.81827513,3801.5,3800.9,1.23109293]
[1641224186646,0.81827513,3801.5,3800.9,0.89072137]
[1641224187646,0.81827513,3801.5,3801.1,0.89072137]
[1641224189650,0.81827513,3801.5,3801.0,0.89072137]
[1641224191353,0.81827513,3801.5,3801.1,1.23107708]
[1641224192252,0.81827513,3801.5,3801.1,0.89072137]
[1641224198060,0.81827513,3801.5,3800.9,0.89072137]
[1641224201163,0.81827513,3801.5,3801.0,1.23091]
[1641224201662,0.81827513,3801.5,3801.0,0.89072137]
[1641224203168,0.81827513,3801.5,3801.2,0.89072137]
[1641224204467,0.81827513,3801.5,3801.2,1.48182137]
[1641224204668,0.81827513,3801.5,3801.3,0.229991]
[1641224205372,0.81827513,3801.5,3801.2,1.48182137]
[1641224205572,0.81827513,3801.5,3801.3,0.89072137]
[1641224206474,0.81827513,3801.5,3801.4,0.229991]
[1641224208075,0.81827513,3801.5,3801.3,0.89072137]
[1641224208477,0.81827513,3801.5,3801.4,0.229991]
[1641224213187,0.81827513,3801.5,3801.4,0.778191]
[1641224213887,0.81827513,3801.5,3801.4,0.5482]
[1641224214589,0.81827513,3801.5,3801.4,0.778191]
[1641224216389,0.81827513,3801.5,3801.4,0.5482]
[1641224218294,0.81827513,3801.5,3801.4,0.778191]
[1641224218494,0.81827513,3801.5,3801.4,0.229991]
[1641224219193,0.81827513,3801.5,3801.3,0.89072137]
[1641224219393,0.81827513,3801.5,3801.3,1.12071237]
[1641224220694,0.81827513,3801.5,3801.3,0.89072137]
[1641224222197,1.38427513,3801.5,3801.3,0.89072137]
[1641224222397,1.31469447,3801.4,3801.3,0.89072137]
[1641224222697,2.81369447,3801.4,3801.3,0.89072137]
[1641224222896,2.81369447,3801.4,3801.1,0.89072137]
[1641224223596,2.00479,3801.2,3801.1,0.89072137]
[1641224224198,2.00479,3801.2,3800.7,0.89072137]
[1641224226199,2.00479,3801.2,3800.6,0.89072137]
[1641224229601,2.00479,3801.2,3800.5,0.89072137]
[1641224230903,2.00479,3801.2,3800.6,1.22891715]
[1641224231506,2.00479,3801.2,3800.5,0.89072137]
[1641224231704,2.00479,3801.2,3800.5,1.01887837]